fUSD/lending_fUSD_20250115
["ID","MTS","AMOUNT","RATE_DAILY","PERIOD"]
[349050016,1736952632648,-150.0,0.00023357,30]
[349050017,1736952632658,-1867.73390434,0.00023357,30]
[349050018,1736952632667,-12937.8729234,0.00023357,30]
[349050019,1736952632676,-837.15580306,0.00023357,30]
[349050020,1736952632687,-1288.25956317,0.00023357,30]
[349050021,1736952632699,-250.0,0.0002457,2]
[349050022,1736952632709,-280.0,0.000253,10]
[349050023,1736952632719,-569.4741048,0.0002578,2]
[349050024,1736952632729,-2657.3108,0.00025781,2]
[349050025,1736952632739,-1588.84835914,0.0002588,2]
[349050026,1736952632749,-1307.0,0.00025881,2]
[349050027,1736952632763,-1116.2074228,0.000259,2]
[349050028,1736952632773,-623.56,0.00026027,4]
[349050029,1736952632783,-494.03,0.0002603,2]
[349050030,1736952632793,-1307.0,0.00026148,2]
[349050031,1736952632803,-1307.0,0.00026415,2]
[349050032,1736952632812,-1554.66662845,0.00026581,13]
[349050035,1736952632826,-851.47837155,0.00026581,13]
[349050037,1736952632837,-169.859,0.00026581,13]
[349050039,1736952632847,-1307.0,0.00026681,2]
[349050040,1736952632857,-402.30754209,0.00026681,2]
[349050042,1736952632866,-1307.0,0.00026948,2]
[349050043,1736952632876,-463.42,0.00027,14]
[349050044,1736952632886,-1116.20742262,0.00027072,2]
[349050045,1736952632897,-1307.0,0.00027215,2]
[349050046,1736952632907,-186.05,0.00027397,2]
[349050047,1736952632917,-1307.0,0.00027482,2]
[349050048,1736952632927,-391.0,0.0002783,15]
[349050049,1736952632937,-1116.20742262,0.00028245,2]
[349050050,1736952632948,-150.0,0.00028256,2]
[349050051,1736952632958,-1104.0,0.00029106,2]
[349050052,1736952632968,-250.0,0.00029396,2]
[349050053,1736952632977,-1116.20742262,0.00029417,2]
[349050054,1736952632987,-200.0,0.00029498,2]
[349050055,1736952632997,-255.49,0.00029749,2]
[349050056,1736952633007,-3000.0,0.000299,2]
[349050057,1736952633017,-1000.0,0.00030032,2]
[349050058,1736952633027,-250.0,0.00030073,2]
[349050059,1736952633037,-5000.0,0.00030139,2]
[349050061,1736952633046,-165.28,0.00030173,2]
[349050062,1736952633056,-176.64,0.00030239,2]
[349050063,1736952633066,-22002.8939206,0.00030239,2]
[349050065,1736952633078,-1897.1060794,0.00030239,2]
[349050067,1736952633088,-1243.37,0.00030495,2]
[349050069,1736952633098,-1116.20742262,0.0003059,2]
[349050071,1736952633109,-548.0,0.00030613,30]
[349050073,1736952633119,-973.98,0.00030753,2]
[349050074,1736952633129,-250.0,0.00031138,2]
[349050075,1736952633139,-880.0,0.00031138,2]
[349050076,1736952633149,-1001.9,0.00031138,2]
[349050077,1736952633159,-1500.0,0.00031138,2]
[349050078,1736952633168,-232.83,0.00031556,2]
[349050079,1736952633179,-500.0,0.00031666,2]
[349050080,1736952633189,-200.0,0.00031666,2]
[349050081,1736952633201,-688.08,0.00031666,120]
[349050082,1736952633211,-9365.55,0.00031749,2]
[349050083,1736952633221,-1116.20742262,0.00031762,2]
[349050084,1736952633231,-500.0,0.00031982,2]
[349050085,1736952633241,-255.49,0.00032013,2]
[349050086,1736952633251,-880.0,0.0003229,2]
[349050087,1736952633260,-3000.0,0.000326,2]
[349050088,1736952633270,-1116.20742262,0.00032934,2]
[349050089,1736952633281,-300.0,0.00033036,2]
[349050090,1736952633290,-200.0,0.00033127,2]
[349050091,1736952633299,-647.18140421,0.00033442,2]
[349050092,1736952633315,-232.81859579,0.00033442,2]
[349050093,1736952633324,-724.0,0.00033674,30]
[349050094,1736952633334,-43.18140421,0.00034107,2]
[349050095,1736952633345,-1073.02601841,0.00034107,2]
[349050096,1736952633355,-255.49,0.00034276,2]
[349050097,1736952633365,-300.0,0.00034406,2]
[349050098,1736952633375,-880.0,0.00034594,2]
[349050099,1736952633384,-973.98,0.00034597,2]
[349050100,1736952633394,-1116.20742262,0.00035279,2]
[349050101,1736952633403,-434.19463101,0.000353,2]
[349050102,1736952633416,-794.34244352,0.000353,2]
[349050103,1736952633428,-1771.46292547,0.000353,2]
[349050104,1736952633439,-688.08,0.00035625,120]
[349050105,1736952633456,-880.0,0.00035746,2]
[349050106,1736952633466,-118.32891066,0.00036374,2]
[349050107,1736952633478,-3197.28222385,0.00036374,2]
[349050108,1736952633491,-602.16886549,0.00036374,2]
[349050109,1736952633500,-1116.20742262,0.00036452,2]
[349050110,1736952633510,-255.49,0.0003654,2]
[349050111,1736952633520,-1000.0,0.000366,7]
[349050112,1736952633530,-500.0,0.00036964,60]
[349050113,1736952633540,-500.0,0.00036964,60]
[349050114,1736952633549,-1000.0,0.00037,120]
[349050115,1736952633559,-10323.55409533,0.00037,117]
[349050116,1736952633571,-374.71432364,0.00037,117]
[349050117,1736952633583,-91.73158103,0.00037,117]
[349050118,1736952633594,-1369.98865576,0.0003727,2]
[349050119,1736952633607,-1130.01134424,0.0003727,2]
[349050120,1736952633617,-500.0,0.00037313,2]
[349050121,1736952633628,-303.5132,0.00037321,2]
[349050122,1736952633638,-168.8545,0.00037321,2]
[349050123,1736952633648,-197.41375576,0.00037321,2]
[349050124,1736952633962,-802.58624424,0.00037321,2]
[349050125,1736952633972,-6506.0,0.0003737,45]
[349050126,1736952633983,-5001.958,0.000375,30]
[349050127,1736952633993,-3000.0,0.00037518,2]
[349050128,1736952634003,-1116.20742262,0.00037624,2]
[349050129,1736952634014,-7277.0105,0.000378,2]
[349050130,1736952634025,-426.085789,0.00037987,31]
[349050131,1736952634035,-19223.49742491,0.00038,28]
[349050136,1736952638163,-33366.09621086,0.00038,28]
[349050137,1736952638302,-1977.13860816,0.00038,28]
[349050138,1736952638441,-12815.31629093,0.00038,28]
[349050139,1736952638456,-5263.83148513,0.00038,28]
[349050140,1736952638468,-3280.53629183,0.00038,28]
[349050141,1736952638477,-1221.01984596,0.00038,30]
[349050142,1736952638487,-150.0,0.00038,7]
[349050143,1736952638496,-600.0,0.0003806,60]
[349050144,1736952638506,-1617.0,0.000381,2]
[349050145,1736952638515,-4000.0,0.00038108,2]
[349050146,1736952638525,-973.98,0.00038441,2]
[349050147,1736952638534,-1000.0,0.000387,2]
[349050148,1736952638543,-462.0,0.000387,2]
[349050149,1736952638553,-1116.20742262,0.00038797,2]
[349050150,1736952638562,-255.49,0.00038804,2]
[349050151,1736952638572,-20759.206,0.000389,2]
[349050152,1736952638581,-8944.9081,0.000389,2]
[349050154,1736952638590,-1361.25751294,0.000389,11]
[349050156,1736952638600,-526.89482661,0.00038909,117]
[349050279,1736952640372,-370.34908809,0.00038909,117]
[349050280,1736952640384,-9456.25534665,0.00038909,117]
[349050281,1736952640396,-1515.50073865,0.00038909,117]
[349050282,1736952640405,-1956.86528313,0.00039,29]
[349050283,1736952640457,-98043.13471687,0.00039,29]
[349050284,1736952640467,-193.92661206,0.00039,30]
[349050285,1736952640477,-46174.57075067,0.00039,120]
[349050286,1736952640487,-170.01,0.00039158,2]
[349050287,1736952640497,-503.37,0.00039198,120]
[349050288,1736952640507,-300.0,0.000392,30]
[349050289,1736952640517,-150.89435533,0.00039565,5]
[349050290,1736952640526,-688.08,0.00039583,120]
[349050291,1736952640536,-151.0132682,0.00039753,4]
[349050292,1736952640545,-150.0,0.00039773,2]
[349050293,1736952640555,-150.0,0.00039773,2]
[349050294,1736952640565,-247.91980627,0.00039773,2]
[349050295,1736952640575,-150.0,0.00039773,2]
[349050296,1736952640584,-356.71089286,0.00039773,2]
[349050297,1736952640594,-1516.64819958,0.00039773,2]
[349050298,1736952640603,-211.23094792,0.00039773,2]
[349050299,1736952640612,-150.46,0.000398,120]
[349050300,1736952640622,-1116.20742262,0.00039969,2]
[349050301,1736952640631,-1974.0,0.00039987,120]
[349050302,1736952640641,-150.69,0.0003999,2]
[349050303,1736952640651,-100000.0,0.0004,30]
[349050304,1736952640661,-1012.2,0.0004,120]
[349050305,1736952640671,-153.0,0.00040152,2]
[349050306,1736952640688,-153.0,0.00040152,2]
[349050307,1736952640700,-153.0,0.00040152,2]
[349050308,1736952640711,-153.0,0.00040152,2]
[349050309,1736952640720,-153.0,0.00040152,2]
[349050310,1736952640730,-153.0,0.00040152,2]
[349050311,1736952640740,-153.0,0.00040152,2]
[349050312,1736952640749,-153.0,0.00040154,2]
[349050313,1736952640761,-153.0,0.00040154,2]
[349050314,1736952640771,-153.0,0.00040154,2]
[349050315,1736952640780,-153.0,0.00040154,2]
[349050316,1736952640790,-153.0,0.00040154,2]
[349050317,1736952640801,-153.0,0.00040154,2]
[349050318,1736952640811,-153.0,0.00040154,2]
[349050319,1736952640820,-153.0,0.00040154,2]
[349050320,1736952640831,-153.0,0.00040161,2]
[349050321,1736952640841,-153.0,0.00040161,2]
[349050323,1736952640851,-153.0,0.00040161,2]
[349050325,1736952640860,-153.0,0.00040161,2]
[349050327,1736952640870,-153.0,0.00040163,2]
[349050329,1736952640879,-153.0,0.00040163,2]
[349050331,1736952640890,-153.0,0.00040163,2]
[349050333,1736952640899,-153.0,0.00040163,2]
[349050335,1736952640909,-5000.0,0.000404,20]
[349050337,1736952640919,-200.0,0.0004063,58]
[349050339,1736952640929,-2489.54236596,0.00040638,14]
[349050341,1736952640939,-200.0,0.00040638,14]
[349050343,1736952640948,-7198.38109564,0.00040645,14]
[349050345,1736952640961,-13883.29191299,0.0004065,2]
[349050347,1736952640971,-177.0,0.00040651,5]
[349050349,1736952640981,-3015.00067726,0.00040651,14]
[349050351,1736952640991,-200.0,0.00040654,14]
[349050352,1736952641001,-3015.00067726,0.00040655,14]
[349050353,1736952641010,-4689.28593028,0.00040655,14]
[349050354,1736952641020,-7198.38109564,0.00040656,14]
[349050355,1736952641029,-530.19882066,0.00040659,14]
[349050356,1736952641038,-3015.00067726,0.0004066,14]
[349050357,1736952641048,-1574.70380764,0.00040666,14]
[349050358,1736952641058,-200.0,0.00040666,14]
[349050359,1736952641068,-1574.70380764,0.00040669,14]
[349050360,1736952641077,-7198.38109564,0.00040669,14]
[349050361,1736952641087,-231.21197577,0.00040671,14]
[349050362,1736952641096,-200.0,0.00040674,14]
[349050363,1736952641106,-2489.54236596,0.00040675,14]
[349050364,1736952641116,-530.19882066,0.00040679,14]
[349050365,1736952641126,-1574.70380764,0.0004068,14]
[349050366,1736952641136,-1574.70380764,0.00040681,14]
[349050367,1736952641146,-231.21197577,0.00040681,14]
[349050368,1736952641155,-530.19882066,0.00040682,14]
[349050369,1736952641164,-7198.38109564,0.00040685,14]
[349050370,1736952641173,-200.0,0.00040687,14]
[349050371,1736952641183,-2489.54236596,0.00040689,14]
[349050372,1736952641192,-4689.28593028,0.00040691,14]
[349050373,1736952641203,-200.0,0.00040694,14]
[349050374,1736952641213,-2489.54236596,0.00040695,14]
[349050375,1736952641405,-1425.95,0.000407,30]
[349050376,1736952641415,-256.05497078,0.000407,2]
[349050377,1736952641424,-500.0,0.000407,14]
[349050378,1736952641434,-22619.20207304,0.000407,120]
[349050379,1736952641444,-200.0,0.00040702,14]
[349050380,1736952641455,-7198.38109564,0.00040705,14]
[349050381,1736952641464,-4689.28593028,0.00040705,14]
[349050382,1736952641474,-4689.28593028,0.00040712,14]
[349050383,1736952641483,-530.19882066,0.00040717,14]
[349050384,1736952641494,-1574.70380764,0.00040719,14]
[349050385,1736952641504,-1574.70380764,0.0004072,14]
[349050386,1736952641513,-3015.00067726,0.00040722,14]
[349050387,1736952641523,-231.21197577,0.00040728,14]
[349050388,1736952641532,-7198.38109564,0.00040732,14]
[349050389,1736952641542,-3015.00067726,0.00040733,14]
[349050390,1736952641551,-3015.00067726,0.00040735,14]
[349050391,1736952641561,-231.21197577,0.00040738,14]
[349050392,1736952641570,-530.19882066,0.00040742,14]
[349050393,1736952641580,-2489.54236596,0.00040743,14]
[349050394,1736952641589,-231.21197577,0.00040744,14]
[349050395,1736952641599,-2489.54236596,0.00040746,14]
[349050396,1736952641608,-4689.28593028,0.00040748,14]
[349050397,1736952641618,-4689.28593028,0.00040753,14]
[349050398,1736952641628,-530.19882066,0.00040754,14]
[349050399,1736952641638,-250.0,0.0004077,3]
[349050400,1736952641648,-1160.28520056,0.00040799,30]
[349050401,1736952641658,-17868.8642986,0.000408,30]
[349050402,1736952641667,-24424.508352,0.000408,30]
[349050403,1736952641676,-24424.508352,0.000408,30]
[349050404,1736952641686,-24424.508352,0.000408,30]
[349050405,1736952641695,-24424.508352,0.000408,30]
[349050406,1736952641708,-24424.508352,0.000408,30]
[349050407,1736952641718,-24424.508352,0.000408,30]
[349050408,1736952641727,-24424.508352,0.000408,30]
[349050409,1736952641737,-24424.508352,0.000408,30]
[349050410,1736952641747,-24424.508352,0.000408,30]
[349050411,1736952641757,-24424.508352,0.000408,30]
[349050412,1736952641770,-2000.0,0.000408,30]
[349050413,1736952641779,-2110.0,0.000408,30]
[349050414,1736952641789,-500.0,0.000408,30]
[349050415,1736952641799,-751.462665,0.000408,30]
[349050416,1736952641809,-1617.3773856,0.000408,2]
[349050417,1736952641819,-1000.0,0.000408,14]
[349050418,1736952641830,-1526.0,0.000408,120]
[349050419,1736952641840,-1058.0,0.000408,5]
[349050420,1736952641851,-25896.0,0.00040818,117]
[349050421,1736952641861,-151.0,0.00040849,120]
[349050422,1736952641870,-47585.9027,0.0004085,3]
[349050423,1736952641880,-290.3389705,0.00040859,7]
[349050424,1736952641889,-4166.66,0.00040869,120]
[349050425,1736952641899,-185000.0,0.0004087,120]
[349050426,1736952641908,-216.08,0.0004089,120]
[349050427,1736952641918,-370.74,0.000409,30]
[349050428,1736952641928,-1500.0,0.000409,14]
[349050429,1736952641938,-95800.0,0.0004093,90]
[349050430,1736952641947,-145200.0,0.0004095,90]
[349050431,1736952641959,-1000.0,0.00040999,120]
[349050432,1736952641968,-100000.0,0.00041,31]
[349050433,1736952641977,-10000.0,0.00041,4]
[349050434,1736952641987,-1000.0,0.00041,120]
[349050435,1736952641996,-50000.0,0.00041,120]
[349050436,1736952642006,-10000.0,0.00041,120]
[349050437,1736952642015,-50000.0,0.00041,30]
[349050438,1736952642025,-27341.65830129,0.00041,120]
[349050439,1736952642035,-150000.0,0.00041,30]
[349050440,1736952642044,-227.4,0.00041041,120]
[349050441,1736952642054,-22619.20207299,0.00041055,120]
[349050442,1736952642063,-255.49,0.00041068,2]
[349050443,1736952642072,-200.0,0.00041096,60]
[349050444,1736952642082,-200.0,0.000411,2]
[349050445,1736952642091,-1116.20742262,0.00041141,2]
[349050446,1736952642101,-151.011408,0.00041198,120]
[349050447,1736952642111,-75000.0,0.000412,60]
[349050448,1736952642120,-2500.0,0.000413,30]
[349050449,1736952642129,-1000.0,0.000414,120]
[349050450,1736952642139,-22619.20207299,0.00041411,120]
[349050451,1736952642148,-4166.66,0.00041417,120]
[349050452,1736952642157,-151.011408,0.00041498,120]
[349050453,1736952642167,-1157.61187575,0.00041499,60]
[349050454,1736952642176,-388.14907091,0.000415,120]
[349050455,1736952642185,-56028.71407139,0.000416,120]
[349050456,1736952642195,-42287.51581475,0.00041698,30]
[349050457,1736952642209,-2000.0,0.000417,7]
[349050458,1736952642219,-300000.0,0.000417,30]
[349050459,1736952642228,-151.0,0.000417,2]
[349050460,1736952642238,-2100.0,0.000417,15]
[349050461,1736952642247,-22619.20207299,0.00041766,120]
[349050462,1736952642257,-151.011408,0.00041798,120]
[349050463,1736952642267,-157.36,0.000418,60]
[349050464,1736952642276,-6754.43868094,0.000418,30]
[349050465,1736952642285,-2600.0,0.000418,15]
[349050466,1736952642295,-151.0,0.00041836,120]
[349050467,1736952642305,-152.56,0.00041849,2]
[349050468,1736952642314,-227.4,0.0004189,120]
[349050469,1736952642323,-20000.0,0.000419,30]
[349050470,1736952642332,-200.32446925,0.000419,2]
[349050471,1736952642341,-151.60496542,0.000419,120]
[349050472,1736952642351,-500.0,0.000419,15]
[349050473,1736952642360,-226.08289361,0.000419,2]
[349050474,1736952642369,-1377.04535994,0.000419,2]
[349050475,1736952642379,-201.35516978,0.000419,8]
[349050476,1736952642388,-4166.66,0.00041965,120]
[349050477,1736952642397,-1000.0,0.00041999,120]
[349050478,1736952642407,-500.0,0.00041999,7]
[349050479,1736952642416,-100000.0,0.00042,32]
[349050480,1736952642425,-6339.57482088,0.00042,31]
[349050481,1736952642435,-8906.47277287,0.00042,2]
[349050482,1736952642444,-400588.97419668,0.00042,7]
[349050483,1736952642457,-5434.0,0.00042,2]
[349050484,1736952642467,-289230.18203498,0.00042,30]
[349050485,1736952642477,-183232.45691572,0.00042,30]
[349050486,1736952642486,-586997.80625979,0.00042,30]
[349050487,1736952642495,-1070896.66796532,0.00042,30]
[349050488,1736952642505,-142309.02982303,0.00042,30]
[349050489,1736952642514,-1246376.12886371,0.00042,30]
[349050490,1736952642532,-454.55573872,0.00042,30]
[349050491,1736952642543,-2775.33,0.00042,30]
[349050492,1736952642562,-1852.0,0.00042,30]
[349050507,1736952643346,-153.42657497,0.00023257,2]
[349050508,1736952643356,-9528.81166503,0.00042,30]
[349050509,1736952643494,-936.42594267,0.00042,30]
[349050510,1736952643506,-24749.01646705,0.00042,30]
[349050511,1736952643516,-148770.80881318,0.00042,30]
[349050512,1736952643526,-70075.68466912,0.00042,30]
[349050513,1736952643536,-103794.32145141,0.00042,30]
[349050514,1736952643546,-16952.2427031,0.00042,30]
[349050515,1736952643556,-15055.0,0.00042,30]
[349050516,1736952643565,-483.52000409,0.00042,120]
[349050517,1736952643574,-1000.0,0.00042,120]
[349050518,1736952643584,-350.0,0.00042,120]
[349050519,1736952643594,-100000.0,0.00042,120]
[349050520,1736952643604,-255.2,0.00042,14]
[349050521,1736952643613,-180.362628,0.00042,14]
[349050522,1736952643623,-197.701676,0.00042,2]
[349050523,1736952643632,-467.95,0.00042,60]
[349050524,1736952643642,-151.0,0.00042,14]
[349050525,1736952643651,-151.0,0.00042,14]
[349050526,1736952643661,-151.0,0.00042,14]
[349050527,1736952643671,-151.0,0.00042,14]
[349050528,1736952643681,-221.0049,0.00042,14]
[349050530,1736952643692,-151.0,0.00042,14]
[349050531,1736952643702,-151.0,0.00042,14]
[349050533,1736952643715,-151.0,0.00042,14]
[349050535,1736952643725,-151.0,0.00042,14]
[349050537,1736952643734,-151.0,0.00042,14]
[349050539,1736952643744,-245.19609,0.00042,14]
[349050541,1736952643753,-151.0,0.00042,14]
[349050543,1736952643764,-151.0,0.00042,14]
[349050545,1736952643775,-151.0,0.00042,14]
[349050548,1736952643785,-151.0,0.00042,14]
[349050550,1736952643795,-168.255151,0.00042,14]
[349050551,1736952643806,-168.255151,0.00042,14]
[349050553,1736952643815,-886.132099,0.00042,14]
[349050555,1736952643826,-168.255151,0.00042,14]
[349050557,1736952643838,-886.132099,0.00042,14]
[349050559,1736952643850,-168.255151,0.00042,14]
[349050561,1736952643860,-886.132099,0.00042,14]
[349050563,1736952643870,-886.132099,0.00042,14]
[349050565,1736952643880,-168.255151,0.00042,14]
[349050567,1736952643890,-886.132099,0.00042,14]
[349050569,1736952643900,-168.255151,0.00042,14]
[349050571,1736952643910,-886.132099,0.00042,14]
[349050573,1736952643920,-168.255151,0.00042,14]
[349050575,1736952643930,-886.132099,0.00042,14]
[349050577,1736952643941,-168.255151,0.00042,14]
[349050580,1736952643951,-886.132099,0.00042,14]
[349050582,1736952643965,-151.0,0.00042,14]
[349050584,1736952643975,-2577.994789,0.00042,14]
[349050586,1736952643985,-2577.994789,0.00042,14]
[349050588,1736952643995,-2577.994789,0.00042,14]
[349050589,1736952644006,-2577.994789,0.00042,14]
[349050591,1736952644016,-2577.994789,0.00042,14]
[349050592,1736952644025,-2577.994789,0.00042,14]
[349050593,1736952644035,-2577.994789,0.00042,14]
[349050595,1736952644045,-2577.994789,0.00042,14]
[349050597,1736952644055,-151.0,0.00042,14]
[349050598,1736952644064,-151.0,0.00042,14]
[349050599,1736952644074,-151.0,0.00042,14]
[349050600,1736952644084,-151.0,0.00042,14]
[349050601,1736952644093,-151.0,0.00042,14]
[349050602,1736952644103,-151.0,0.00042,14]
[349050603,1736952644113,-151.0,0.00042,14]
[349050604,1736952644122,-151.0,0.00042,7]
[349050605,1736952644132,-415.230589,0.00042,14]
[349050606,1736952644142,-151.0,0.00042,7]
[349050607,1736952644151,-226.940382,0.00042,7]
[349050608,1736952644160,-415.230589,0.00042,14]
[349050609,1736952644170,-415.230589,0.00042,14]
[349050610,1736952644180,-415.230589,0.00042,14]
[349050611,1736952644190,-415.230589,0.00042,14]
[349050612,1736952644200,-415.230589,0.00042,14]
[349050613,1736952644212,-415.230589,0.00042,14]
[349050614,1736952644222,-415.230589,0.00042,14]
[349050615,1736952644232,-151.0,0.00042,14]
[349050616,1736952644242,-151.0,0.00042,14]
[349050617,1736952644251,-151.0,0.00042,14]
[349050618,1736952644261,-151.0,0.00042,14]
[349050619,1736952644270,-232.146205,0.00042,14]
[349050620,1736952644280,-151.0,0.00042,14]
[349050621,1736952644289,-151.0,0.00042,14]
[349050622,1736952644298,-151.0,0.00042,14]
[349050623,1736952644308,-151.0,0.00042,14]
[349050624,1736952644317,-1320.97771999,0.0004201,2]
[349050625,1736952644327,-22619.20207299,0.00042122,120]
[349050626,1736952644337,-151.011408,0.00042198,120]
[349050627,1736952644346,-973.98,0.00042285,2]
[349050628,1736952644356,-1116.20742262,0.00042314,2]
[349050629,1736952644366,-22619.20207299,0.00042477,120]
[349050631,1736952644375,-151.011408,0.00042498,120]
[349050633,1736952644385,-100000.0,0.000425,120]
[349050634,1736952644395,-4166.66,0.00042513,120]
[349050636,1736952644404,-3000.0,0.00042518,2]
[349050638,1736952644414,-28055.3,0.00042727,117]
[349050640,1736952644424,-227.4,0.0004274,120]
[349050642,1736952644433,-503.37,0.00042762,120]
[349050643,1736952644443,-10000.0,0.0004278,30]
[349050644,1736952644453,-151.011408,0.00042798,120]
[349050645,1736952644466,-151.0,0.00042822,120]
[349050646,1736952644476,-22619.20207299,0.00042833,120]
[349050647,1736952644485,-1000.0,0.00042999,120]
[349050648,1736952644495,-38877.37711425,0.00043,3]
[349050649,1736952644505,-63108.67355897,0.00043,2]
[349050650,1736952644515,-214.0,0.00043,7]
[349050651,1736952644525,-100000.0,0.00043,30]
[349050652,1736952644535,-100000.0,0.00043,120]
[349050653,1736952644545,-4113.41031343,0.00043,120]
[349050654,1736952644554,-9144.12238745,0.00043,120]
[349050655,1736952644563,-11272.50822979,0.00043,120]
[349050656,1736952644573,-5050.33578194,0.00043,120]
[349050657,1736952644583,-168.255151,0.00043,14]
[349050658,1736952644592,-886.132099,0.00043,14]
[349050659,1736952644601,-168.255151,0.00043,14]
[349050660,1736952644610,-886.132099,0.00043,14]
[349050661,1736952644620,-151.0,0.00043,14]
[349050662,1736952644629,-187.96,0.00043014,120]
[349050663,1736952644639,-2577.994789,0.00043061,14]
[349050664,1736952644649,-2577.994789,0.00043061,14]
[349050665,1736952644659,-4166.66,0.00043061,120]
[349050666,1736952644668,-274.22,0.00043151,2]
[349050667,1736952644678,-151.0,0.00043188,14]
[349050668,1736952644687,-151.0,0.00043188,14]
[349050669,1736952644697,-415.230589,0.00043188,14]
[349050670,1736952644709,-415.230589,0.00043188,14]
[349050671,1736952644719,-22619.20207299,0.00043188,120]
[349050672,1736952644729,-151.011408,0.00043198,120]
[349050673,1736952644739,-151.0,0.00043198,14]
[349050674,1736952644749,-1361.25751285,0.0004325,15]
[349050675,1736952644761,-2500.0,0.000433,30]
[349050676,1736952644771,-255.49,0.00043332,2]
[349050677,1736952644781,-467.95,0.000434,60]
[349050678,1736952644790,-1116.20742262,0.00043486,2]
[349050679,1736952644800,-151.011408,0.00043498,120]
[349050680,1736952644810,-688.08,0.00043541,120]
[349050681,1736952644819,-22619.20207299,0.00043544,120]
[349050682,1736952644831,-227.4,0.00043589,120]
[349050683,1736952644841,-1001.9,0.00043593,2]
[349050684,1736952644852,-4166.66,0.00043609,120]
[349050685,1736952644862,-151.011408,0.00043798,120]
[349050686,1736952644873,-471.21686526,0.000438,30]
[349050687,1736952644883,-603.26884285,0.000438,30]
[349050688,1736952644893,-44396.73115715,0.000438,30]
[349050689,1736952644904,-58800.60980557,0.000438,2]
[349050690,1736952644922,-585.46194744,0.000438,2]
[349050691,1736952644934,-112731.90413719,0.000438,2]
[349050694,1736952646474,-254.52,0.00010137,2]
[349050695,1736952646484,-132.11726346,0.00016813,2]
[349050993,1736953532379,1000.0,9.703e-05,12]
[349050995,1736953604093,-2829.0,9.703e-05,2]
[349050996,1736953604117,-300.0,9.972e-05,2]
[349050997,1736953604137,-213.39737286,9.973e-05,2]
[349050998,1736953604158,-150.892974,9.973e-05,2]
[349050999,1736953604182,-150.892974,9.973e-05,2]
[349051000,1736953604203,-150.89297281,9.973e-05,2]
[349051001,1736953604393,-150.8933533,9.973e-05,2]
[349051002,1736953604414,-104.22739241,9.973e-05,2]
[349051017,1736953831532,-300.0,9.6e-05,3]
[349051018,1736953831542,-600.0,9.7e-05,3]
[349051020,1736953831552,-900.0,9.8e-05,3]
[349051021,1736953831561,-1196.10000003,9.9e-05,3]
[349051025,1736953831607,-3.89999997,9.9e-05,3]
[349051027,1736953831617,-160.88588615,9.973e-05,2]
[349051028,1736953831628,-200.83957518,9.973e-05,2]
[349051029,1736953831638,-151.89264706,9.973e-05,2]
[349051030,1736953831647,-150.89297399,9.973e-05,2]
[349051031,1736953831657,-150.892974,9.973e-05,2]
[349051032,1736953831667,-159.88659496,9.973e-05,2]
[349051033,1736953831677,-500.0,9.973e-05,2]
[349051034,1736953831688,-159.85699065,9.973e-05,2]
[349051035,1736953831698,-160.88588616,9.973e-05,2]
[349051036,1736953831708,-150.89335334,9.973e-05,2]
[349051037,1736953831717,-150.892974,9.973e-05,2]
[349051038,1736953831727,-150.89297282,9.973e-05,2]
[349051039,1736953831736,-152.89155644,9.973e-05,2]
[349051040,1736953831747,-150.89297399,9.973e-05,2]
[349051041,1736953831757,-150.892974,9.973e-05,2]